{"text_format":"3","workbook":"xlsx","n_sheets":1,"sheets":["Year 1 and Year 2"],"not_rendered":{"images":1,"defined_names":1},"read":"whole","date_system":"1900"}

{"sheet":"Year 1 and Year 2","index":0,"n_rows":33,"n_cols":11,"rows_kept":33,"merged":[[1,1,1,10],[3,1,3,8],[4,0,4,3],[5,0,5,3],[6,0,6,3],[7,0,7,3],[12,0,12,3],[13,0,13,3],[14,0,14,3],[15,0,15,3],[16,0,16,2],[18,2,18,4],[19,2,19,5],[20,2,20,5],[21,2,21,4],[22,0,22,8],[23,0,23,8],[24,0,24,8],[25,0,25,8],[26,0,26,8],[27,0,27,8],[28,0,28,8],[29,1,29,5],[32,0,33,0]]}
[null,"APPENDIX A - PRICING SHEET "]
[null,"THE APPOINTMENT OF A SERVICE PROVIDER TO FACILITATE THE REVIEW AND REALIGNING OF QUALIFICATIONS AND DEVELOPMENT OF ASSESSMENT DOCUMENTS"]
[null,"Bid No: BS/2023/RFB508"]
[]
["Description",{"$nulls":3},"Qty Year 1","UNIT PRICE ( Ex Vat) YEAR 1","TOTAL AMOUNT YEAR 1 (Excluding VAT)","Qty Year 2","UNIT PRICE ( Ex Vat) YEAR 2","TOTAL AMOUNT YEAR 2 (EXCLUDING VAT)","TOTAL AMOUNT (Ex Vat) FOR 2 YEARS"]
["Facilitate the realignment of 12 historically registered qualifications including the Qualifications Assessment blueprint (QAS addenda), exemplars including five (5) assessment tools and the memoranda for the 12 qualifications (including required reports)",{"$nulls":3},12,{"v":100,"d":"R 100.00"},{"$f":"+E6*F6","v":{"v":1200,"d":"R1,200.00"}},{"$nulls":3},{"$f":"G6","v":{"v":1200,"d":"R1,200.00"}}]
["Facilitate the review of (one) 1 occupational qualification that expires on 05 December 2024 including the Qualifications Assessment blueprint (QAS addenda), exemplars including five (5) assessment tools and the memoranda (including required reports)",{"$nulls":3},1,{"v":100,"d":"R 100.00"},{"$f":"+E7*F7","v":{"v":100,"d":"R100.00"}},{"$nulls":3},{"$f":"G7","v":{"v":100,"d":"R100.00"}}]
["3.3\tFacilitate the development of Qualification Assessment Specifications (QAS), Assessment Instruments, Memoranda and Exemplars for 3 occupational qualifications within the banking and alternative banking sector scope. (including required reports)",{"$nulls":3},0,null,null,3,{"v":100,"d":"R 100.00"},{"$f":"+H8*I8","v":{"v":300,"d":"R300.00"}},{"$f":"J8","v":{"v":300,"d":"R300.00"}}]
["Subtotal",{"$nulls":5},{"$f":"G6+G7","v":{"v":1300,"d":"R 1,300.00"}},null,null,{"$f":"J8","v":{"v":300,"d":"R 300.00"}},{"$f":"K6+K7+K8","v":{"v":1600,"d":"R 1,600.00"}}]
[]
[]
[]
["Other Items not included in above - BIDDER TO SPECIFY",{"$nulls":3},{"$f":"+E5","v":"Qty Year 1"},"UNIT PRICE ( Ex Vat) YEAR 1","TOTAL AMOUNT YEAR 1 (Excluding VAT)","Qty Year 2","UNIT PRICE ( Ex Vat) YEAR 2","TOTAL AMOUNT YEAR 2 (EXCLUDING VAT)","TOTAL AMOUNT (Ex Vat) FOR 2 YEARS"]
[1,{"$nulls":3},0,{"v":0,"d":"R 0.00"},{"$f":"+E14*F14","v":{"v":0,"d":"R0.00"}},0,{"v":0,"d":"R 0.00"},{"$f":"+I14*H14","v":{"v":0,"d":"R0.00"}},{"$f":"+G14+J14","v":{"v":0,"d":"R0.00"}}]
[2,{"$nulls":3},0,{"v":0,"d":"R 0.00"},{"v":0,"d":"R0.00"},0,{"v":0,"d":"R 0.00"},{"v":0,"d":"R0.00"},{"$f":"+G15+J15","v":{"v":0,"d":"R0.00"}}]
[3,{"$nulls":3},0,{"v":0,"d":"R 0.00"},{"v":0,"d":"R0.00"},0,{"v":0,"d":"R 0.00"},{"v":0,"d":"R0.00"},{"$f":"+G16+J16","v":{"v":0,"d":"R0.00"}}]
["OPTIONAL/ ADDITIONAl SUB TOTAL",{"$nulls":5},{"$f":"SUM(G14:G16)","v":{"v":0,"d":"R 0.00"}},null,null,{"$f":"SUM(J14:J16)","v":{"v":0,"d":"R 0.00"}},{"$f":"SUM(K14:K16)","v":{"v":0,"d":"R 0.00"}}]
[]
["TOTAL EXCLUDING VAT",null,"Total excluding VAT",{"$nulls":3},{"$f":"+G17+G9","v":{"v":1300,"d":"R1,300.00"}},null,null,{"$f":"+J17+J9","v":{"v":300,"d":"R 300.00"}},{"$f":"K17+K9","v":{"v":1600,"d":"R 1,600.00"}}]
[null,null,"VAT if Applicable (If VAT registered or over VAT threshold)",{"$nulls":3},{"$f":"+G19*0.15","v":{"v":195,"d":"R195.00"}},null,null,{"$f":"+J19*0.15","v":{"v":45,"d":"R45.00"}},{"$f":"+K19*0.15","v":{"v":240,"d":"R240.00"}}]
[null,null,"TOTAL BIDDING PRICE INCL VAT",{"$nulls":3},{"$f":"+G19+G20","v":{"v":1495,"d":"R1,495.00"}},null,null,{"$f":"+J19+J20","v":{"v":345,"d":"R345.00"}},{"$f":"+K19+K20","v":{"v":1840,"d":"R1,840.00"}}]
["Notes:"]
["Pricing is for evaluation purposes and the contract value will be as per the budgeted price for this project"]
["Pricing must cover all items detailed in the Terms of Reference"]
["Pricing must remain firm for each year quoted period"]
["Pricing must include Value Added Tax (VAT) where applicable."]
["The total contract value will be based on the budgeted amount for this services"]
["Service provider must complete blocks in yellow. Total values in this spreadsheet are automatically calculated and filled in."]
[]
["Date:"]
["Service Provider Name"]
["Name of Person Signing"]
["Signature"]